bitfinex/quotes_SOLUSD_20251207
["timestamp","ask_amount","ask_price","bid_price","bid_amount"]
[1765117654819,8.80994492,129.27,129.15,65.81458958]
[1765117655625,0.68,129.26,129.15,65.81458958]
[1765117655831,8.80994492,129.25,129.15,65.81458958]
[1765117656142,0.68,129.3,129.18,16.308864]
[1765117656438,0.68,129.3,129.19,9.88]
[1765117657221,0.68,129.3,129.2,65.78947368]
[1765117657839,16.308864,129.27,129.11,0.71]
[1765117658022,16.308864,129.27,129.19,7.74031232]
[1765117658230,0.68,129.27,129.19,27.0916553]
[1765117658428,9.00994492,129.31,129.19,65.79434126]
[1765117658649,0.2,129.31,129.19,65.79434126]
[1765117658831,0.68,129.3,129.19,65.79434126]
[1765117659026,8.80994492,129.29,129.19,65.79434126]
[1765117659416,8.80994492,129.29,129.19,58.05402894]
[1765117659617,0.68,129.28,129.19,58.76402894]
[1765117659847,0.68,129.28,129.2,0.71]
[1765117660844,8.80994492,129.29,129.2,0.71]
[1765117661027,1.18,129.3,129.2,0.71]
[1765117661028,0.68,129.3,129.2,0.71]
[1765117661545,0.2,129.31,129.21,82.09324601]
[1765117661746,1e-08,129.31,129.25,16.308864]
[1765117661978,1e-08,129.31,129.29,16.308864]
[1765117662444,1e-08,129.31,129.3,0.71]
[1765117662632,1e-08,129.31,129.26,0.71]
[1765117662833,1e-08,129.31,129.27,0.71]
[1765117663228,1e-08,129.31,129.24,26.148864]
[1765117663429,1e-08,129.31,129.25,27.07930366]
[1765117663842,0.68000001,129.31,129.25,27.07930366]
[1765117665549,0.68000001,129.31,129.22,26.858864]
[1765117665550,0.68000001,129.31,129.23,82.08306502]
[1765117665723,0.68000001,129.31,129.23,82.79306502]
[1765117666050,0.68000001,129.31,129.23,43.39235853]
[1765117666462,8.80994492,129.3,129.23,27.08349453]
[1765117666841,8.80994492,129.28,129.23,27.08349453]
[1765117667154,0.68,129.29,129.23,27.08349453]
[1765117667446,0.68,129.29,129.21,65.78207207]
[1765117667970,9.48994493,129.31,129.22,0.71]
[1765117668125,9.48994493,129.31,129.21,65.78207207]
[1765117668325,9.48994493,129.31,129.22,0.71]
[1765117668625,9.48994493,129.31,129.21,65.78207207]
[1765117668626,0.68,129.3,129.21,65.78207207]
[1765117668836,0.68,129.3,129.21,27.08768671]
[1765117669428,0.68,129.3,129.19,27.09188017]
[1765117669429,8.80994492,129.28,129.19,27.09188017]
[1765117669633,8.80994492,129.29,129.19,66.50456613]
[1765117669840,0.68,129.29,129.2,0.71]
[1765117670038,0.68,129.28,129.2,0.71]
[1765117670428,8.80994492,129.27,129.2,0.71]
[1765117670747,0.68,129.28,129.2,0.71]
[1765117671242,0.68,129.28,129.19,65.79456613]
[1765117671243,8.80994492,129.27,129.19,65.79456613]
[1765117671565,8.80994492,129.27,129.19,58.05402894]
[1765117671730,8.80994492,129.25,129.19,19.35134298]
[1765117672132,0.7,129.25,129.19,19.35134298]
[1765117672834,0.7,129.28,129.19,20.03134298]
[1765117674162,0.7,129.28,129.19,19.35134298]
[1765117674477,8.80994492,129.25,129.18,7.74113639]
[1765117674640,8.80994492,129.25,129.1,0.68]
[1765117674846,8.80994492,129.21,129.11,7.74533343]
[1765117675226,8.80994492,129.19,129.11,7.74533343]
[1765117675751,0.7,129.19,129.11,66.51507383]
[1765117676871,8.80994492,129.18,129.11,27.78866702]
[1765117677854,7.7397759,129.21,129.11,27.78866702]
[1765117678050,0.7,129.18,129.11,27.78866702]
[1765117678562,0.7,129.21,129.12,0.68]
[1765117678743,8.80994492,129.19,129.13,27.10446835]
[1765117679149,8.80994492,129.19,129.13,27.78446835]
[1765117679448,0.7,129.2,129.13,66.50513744]
[1765117679668,0.7,129.23,129.14,0.68]
[1765117679853,9.50994492,129.22,129.14,0.68]
[1765117680371,8.80994492,129.24,129.13,65.82513744]
[1765117680534,8.80994492,129.2,129.13,65.82513744]
[1765117680742,0.7,129.21,129.14,0.68]
[1765117680948,8.80994492,129.2,129.13,65.82513744]
[1765117681151,8.80994492,129.2,129.13,66.54513744]
[1765117681449,0.66,129.2,129.13,66.54513744]
[1765117681648,16.54748747,129.24,129.13,7.74413381]
[1765117681649,8.80994492,129.18,129.13,7.74413381]
[1765117682182,0.66,129.17,129.13,27.10446835]
[1765117682388,0.66,129.17,129.12,7.7446769]
[1765117682389,8.80994492,129.16,129.12,7.7446769]
[1765117682563,0.66,129.17,129.13,7.74413238]
[1765117682866,140.76911172,129.24,129.11,56.87200061]
[1765117682867,8.80994492,129.2,129.11,56.87200061]
[1765117683179,0.66,129.21,129.14,16.308864]
[1765117683554,0.66,129.21,129.14,17.028864]
[1765117684367,0.66,129.26,129.15,0.72]
[1765117684566,0.66,129.3,129.19,16.308864]
[1765117684878,0.66,129.3,129.2,65.78947368]
[1765117685179,0.66,129.3,129.21,9.68]
[1765117685358,0.66,129.3,129.21,10.4]
[1765117685884,0.66,129.3,129.2,27.08978328]
[1765117686176,9.30994492,129.29,129.2,27.08978328]
[1765117686584,8.80994492,129.27,129.2,27.08978328]
[1765117686872,0.66,129.26,129.2,27.08978328]
[1765117687076,8.80994492,129.25,129.2,7.73993808]
[1765117687448,0.66,129.24,129.2,7.73993808]
[1765117687646,8.80994492,129.23,129.19,7.74036633]
[1765117687955,0.66,129.24,129.19,7.74042367]
[1765117688150,7.73574688,129.27,129.2,0.72]
[1765117688151,8.80994492,129.27,129.2,0.72]
[1765117688455,0.66,129.27,129.2,0.72]
[1765117688663,0.66,129.3,129.2,10.38]
[1765117688872,0.66,129.3,129.21,27.08768671]
[1765117689050,0.66,129.3,129.21,66.50438201]
[1765117689252,1e-08,129.31,129.24,16.308864]
[1765117689661,1e-08,129.31,129.25,0.72]
[1765117690456,1e-08,129.31,129.25,10.36]
[1765117690671,1e-08,129.31,129.26,0.72]
[1765117690876,1e-08,129.31,129.27,27.07511409]
[1765117691176,1e-08,129.31,129.27,27.79511409]
[1765117691677,1e-08,129.31,129.28,0.72]
[1765117692654,0.66,129.3,129.27,7.73574688]
[1765117692853,0.66,129.3,129.24,38.68587763]
[1765117693154,1e-08,129.31,129.24,39.40587763]
[1765117693791,1e-08,129.31,129.27,16.308864]
[1765117694279,1e-08,129.31,129.27,17.028864]
[1765117694654,1e-08,129.31,129.27,16.308864]
[1765117694963,1e-08,129.31,129.24,38.68587763]
[1765117694964,0.66,129.3,129.29,7.73455023]
[1765117695162,0.66,129.3,129.24,9.6]
[1765117695576,0.66,129.3,129.26,7.73591467]
[1765117695780,0.66,129.3,129.23,19.34487326]
[1765117695982,0.66,129.3,129.26,7.73591539]
[1765117696185,8.80994492,129.29,129.24,19.34249481]
[1765117696484,8.80994492,129.29,129.24,7.73711342]
[1765117696670,0.66,129.28,129.25,7.73682508]
[1765117696988,0.66,129.28,129.21,7.73933906]
[1765117697163,1e-08,129.31,129.24,16.308864]
[1765117697362,1e-08,129.31,129.28,16.308864]
[1765117697567,0.86,129.41,129.32,16.308864]
[1765117697568,0.2,129.41,129.32,16.308864]
[1765117697768,0.2,129.41,129.33,9.86004634]
[1765117697969,0.2,129.41,129.33,0.72]
[1765117698176,0.66,129.4,129.31,10.34]
[1765117698766,0.66,129.4,129.32,0.72]
[1765117698978,0.66,129.4,129.33,27.06255315]
[1765117699365,0.66,129.4,129.33,27.78255315]
[1765117700080,0.66,129.4,129.33,66.44334337]
[1765117700276,0.66,129.4,129.33,27.06255315]
[1765117700277,8.80994492,129.39,129.33,27.06255315]
[1765117700666,0.66,129.4,129.33,27.72255315]
[1765117702569,8.80994492,129.39,129.33,27.06255315]
[1765117702768,8.80994492,129.39,129.33,7.73215804]
[1765117702985,8.80994492,129.37,129.29,38.67039328]
[1765117703170,8.80994492,129.37,129.27,27.73511409]
[1765117703371,8.80994492,129.37,129.27,27.07511409]
[1765117703372,8.80994492,129.35,129.27,27.07511409]
[1765117703661,0.69,129.34,129.27,27.07511409]
[1765117704393,0.69,129.34,129.27,27.73511409]
[1765117704689,8.80994492,129.35,129.28,0.66]
[1765117704901,0.69,129.36,129.28,0.66]
[1765117705112,0.69,129.38,129.29,27.07092581]
[1765117705266,8.80994492,129.39,129.29,43.37978981]
[1765117705470,8.80994492,129.39,129.3,0.66]
[1765117705796,0.69,129.38,129.3,0.66]
[1765117706094,0.89,129.41,129.3,0.66]
[1765117706283,8.80994492,129.39,129.3,0.66]
[1765117706863,9.00994492,129.41,129.3,0.66]
[1765117707069,8.80994492,129.39,129.31,27.06673883]
[1765117707471,0.69,129.39,129.32,0.66]
[1765117707668,0.2,129.41,129.32,0.66]
[1765117707669,0.89,129.41,129.32,0.66]
[1765117707864,0.2,129.41,129.34,16.308864]
[1765117708288,0.2,129.41,129.35,0.66]
[1765117708495,0.69,129.4,129.31,66.3935086]
[1765117708697,9.49994492,129.4,129.31,66.3935086]
[1765117708980,0.69,129.4,129.32,0.66]
[1765117709180,0.69,129.4,129.33,27.06255315]
[1765117709667,0.69,129.4,129.33,27.72255315]
[1765117710478,0.69,129.4,129.33,65.72334337]
[1765117710687,0.69,129.4,129.33,66.38334337]
[1765117710981,27.73799672,129.4,129.32,7.73259718]
[1765117711187,17.22863866,129.39,129.28,27.07301979]
[1765117711505,19.01994492,129.39,129.29,0.66]
[1765117711810,0.69,129.38,129.29,39.33007706]
[1765117712295,0.69,129.38,129.3,0.66]
[1765117713005,16.73741052,129.41,129.3,0.66]
[1765117713196,16.73741052,129.41,129.31,65.7335086]
[1765117713197,0.2,129.41,129.31,65.7335086]
[1765117713393,8.80994492,129.4,129.31,65.7335086]
[1765117713700,8.80994492,129.4,129.32,0.66]
[1765117713926,9.69994492,129.41,129.32,0.66]
[1765117714208,0.2,129.41,129.34,16.308864]
[1765117714577,0.2,129.41,129.35,16.968864]
[1765117714783,0.2,129.41,129.35,0.66]
[1765117715103,0.2,129.41,129.37,65.70302233]
[1765117715408,7.72153676,129.51,129.37,65.70302233]
[1765117715574,7.71962328,129.54,129.4,16.308864]
[1765117715779,1.0,129.57,129.41,16.308864]
[1765117715780,9.5,129.57,129.41,16.308864]
[1765117716181,75.0,129.56,129.42,0.66]
[1765117716386,16.308864,129.53,129.42,0.66]
[1765117716597,8.80994492,129.52,129.42,0.66]
[1765117716798,1.0,129.57,129.42,0.66]
[1765117716974,9.00994492,129.54,129.42,0.66]
[1765117717182,8.80994492,129.52,129.43,27.04164412]
[1765117717573,0.69,129.51,129.43,27.70164412]
[1765117718205,10.17,129.51,129.43,27.70164412]
[1765117718385,0.69,129.51,129.43,66.3325643]
[1765117718709,0.69,129.51,129.44,0.66]
[1765117718911,16.72976007,129.54,129.44,0.66]
[1765117719209,8.80994492,129.52,129.45,27.03746619]
[1765117719706,8.80994492,129.52,129.45,27.69746619]
[1765117721379,0.69,129.53,129.45,27.69746619]
[1765117721581,9.49994492,129.52,129.45,7.72499034]
[1765117721995,8.80994492,129.5,129.45,7.72499034]
[1765117722485,9.49994492,129.52,129.45,27.69746619]
[1765117723008,0.69,129.52,129.45,27.69746619]
[1765117723206,0.69,129.52,129.45,27.03746619]
[1765117723412,0.69,129.52,129.44,0.66]
[1765117723591,8.80994492,129.51,129.44,0.66]
[1765117724093,9.49994492,129.51,129.44,0.66]
[1765117725211,0.69,129.5,129.41,66.34271385]
[1765117725415,8.41216247,129.5,129.41,7.7273781]
[1765117725802,8.80994492,129.48,129.41,27.04582335]
[1765117726100,18.22994492,129.48,129.41,27.04582335]
[1765117726305,0.69,129.47,129.41,27.04582335]
[1765117726608,8.80994492,129.48,129.42,0.66]
[1765117726815,0.69,129.47,129.41,27.04582335]
[1765117727499,8.80994492,129.46,129.4,7.72797527]
[1765117727961,8.80994492,129.44,129.4,7.72797527]
[1765117728412,8.80994492,129.44,129.34,48.07667796]
[1765117728413,8.80994492,129.42,129.38,7.72899073]
[1765117728724,0.69,129.41,129.37,7.72963296]
[1765117728905,0.69,129.41,129.32,0.66]
[1765117728906,8.80994492,129.4,129.32,0.66]
[1765117729107,8.80994492,129.4,129.33,7.73197464]
[1765117729304,8.80994492,129.38,129.32,0.66]
[1765117729617,25.93917283,129.38,129.32,7.73266881]
[1765117729927,25.93917283,129.38,129.3,7.73377172]
[1765117729928,8.80994492,129.36,129.3,7.73377172]
[1765117730092,8.80994492,129.36,129.29,7.73452473]
[1765117730093,25.11880892,129.36,129.29,7.73452473]
[1765117730295,25.11880892,129.36,129.28,7.73504635]
[1765117730296,8.80994492,129.34,129.28,7.73504635]
[1765117730692,8.80994492,129.32,129.26,19.34047358]
[1765117730994,18.20994492,129.32,129.24,19.34332944]
[1765117731307,8.80994492,129.3,129.26,7.73618342]
[1765117731489,8.80994492,129.3,129.22,19.34685033]
[1765117731691,0.68,129.29,129.22,19.34685033]
[1765117732093,0.68,129.29,129.22,27.08559046]
[1765117732294,0.68,129.29,129.22,27.75559046]
[1765117733519,8.80994492,129.28,129.22,27.75559046]
[1765117733715,8.80994492,129.28,129.22,27.08559046]
[1765117734027,0.68,129.27,129.22,27.08559046]
[1765117734410,0.68,129.3,129.23,0.67]
[1765117734590,16.308864,129.33,129.22,27.08559046]
[1765117734591,9.48994492,129.29,129.22,27.08559046]
[1765117735100,0.68,129.28,129.22,27.08559046]
[1765117736117,8.80994492,129.27,129.22,27.08559046]
[1765117736730,0.69,129.27,129.22,27.08559046]
[1765117737102,0.69,129.29,129.23,0.69]
[1765117737307,8.80994492,129.31,129.23,0.69]
[1765117737506,8.80994492,129.31,129.24,27.08139894]
[1765117737507,0.69,129.31,129.24,27.08139894]
[1765117737736,9.49994492,129.31,129.24,27.08139894]
[1765117738042,0.69,129.33,129.25,0.69]
[1765117738640,8.80994492,129.32,129.23,7.73796065]
[1765117738842,8.80994492,129.28,129.23,7.73796065]
[1765117739039,18.20994492,129.28,129.19,19.35080673]
[1765117739223,8.80994492,129.24,129.2,7.73951311]
[1765117739428,8.80994492,129.26,129.2,19.34874268]
[1765117739650,18.89994492,129.26,129.18,7.84113639]
[1765117739856,18.89994492,129.26,129.19,0.69]
[1765117740322,9.49994492,129.26,129.19,0.69]
[1765117740524,0.69,129.28,129.19,0.69]
[1765117740721,8.80994492,129.27,129.18,65.89965937]
[1765117740941,10.09,129.28,129.19,0.69]
[1765117740942,0.69,129.28,129.19,0.69]
[1765117741365,8.80994492,129.3,129.21,16.308864]
[1765117741519,8.80994492,129.3,129.22,27.08559046]
[1765117741725,8.80994492,129.3,129.22,66.46929112]
[1765117741926,8.80994492,129.3,129.23,0.69]
[1765117742141,0.69,129.29,129.22,65.77929112]
[1765117742340,8.80994492,129.28,129.22,27.08559046]
[1765117742724,0.69,129.28,129.22,27.08559046]
[1765117743234,0.69,129.28,129.21,7.73920164]
[1765117743541,9.49994492,129.28,129.2,7.73993808]
[1765117743745,9.49994492,129.28,129.21,19.34834765]
[1765117743924,8.80994492,129.26,129.21,19.34834765]
[1765117744325,9.49994492,129.26,129.21,19.34834765]
[1765117744654,8.80994492,129.24,129.19,7.74049617]
[1765117744843,0.69,129.23,129.19,7.74049617]
[1765117745162,8.80994492,129.22,129.18,0.1]
[1765117745542,0.69,129.21,129.18,0.1]
[1765117745865,8.80994492,129.2,129.18,0.1]
[1765117746247,76.0,129.28,129.18,0.1]
[1765117746456,8.80994492,129.21,129.18,0.1]
[1765117746966,8.80994492,129.24,129.18,0.1]
[1765117747158,8.80994492,129.23,129.18,0.1]
[1765117747477,9.49994492,129.23,129.18,0.1]
[1765117747664,8.80994492,129.21,129.18,0.1]
[1765117748047,9.49994492,129.21,129.18,0.1]
[1765117748562,10.09,129.24,129.18,0.1]
[1765117748772,9.49994492,129.23,129.18,0.1]
[1765117749155,8.80994492,129.21,129.18,0.1]
[1765117749772,9.49994492,129.21,129.18,0.1]
[1765117750357,0.69,129.21,129.18,0.1]
[1765117751252,8.80994492,129.2,129.18,0.1]
[1765117751645,9.99994492,129.2,129.18,0.1]
[1765117752356,9.30994492,129.2,129.18,0.1]
[1765117752881,0.5,129.2,129.18,0.1]
[1765117753456,9.4,129.21,129.18,0.1]
[1765117753665,10.09,129.21,129.18,0.1]
[1765117754160,8.80994492,129.23,129.18,0.1]
[1765117754357,10.09,129.22,129.18,0.1]
[1765117755066,8.80994492,129.24,129.18,0.79]
[1765117755250,18.20994492,129.24,129.19,27.09188017]
[1765117755456,8.80994492,129.27,129.19,27.09188017]
[1765117755681,9.4,129.26,129.2,0.69]
[1765117755993,8.80994492,129.28,129.2,0.69]
[1765117756159,9.4,129.27,129.2,0.69]
[1765117756677,0.5,129.27,129.2,0.69]
[1765117757466,0.69,129.31,129.24,16.308864]
[1765117757659,0.69,129.31,129.25,0.69]
[1765117758060,18.20994492,129.32,129.25,0.69]
[1765117758262,0.69,129.31,129.25,0.69]
[1765117758473,0.69,129.31,129.21,65.78438201]
[1765117758474,8.80994492,129.3,129.22,0.69]
[1765117758679,25.11880892,129.3,129.21,27.08768671]
[1765117758863,8.80994492,129.28,129.21,27.08768671]
[1765117759067,8.80994492,129.26,129.21,27.08768671]
[1765117759293,8.80994492,129.26,129.21,7.73933906]
[1765117759584,9.49994492,129.26,129.2,27.08978328]
[1765117759804,9.49994492,129.26,129.21,0.69]
[1765117760909,8.80994492,129.26,129.21,0.69]
[1765117761197,9.47994492,129.26,129.21,0.69]
[1765117761572,9.4,129.27,129.22,27.08559046]
[1765117762000,0.5,129.26,129.22,27.08559046]
[1765117762178,0.5,129.26,129.23,0.68]
[1765117762579,1.17,129.26,129.2,7.7393423]
[1765117762898,8.80994492,129.23,129.18,0.1]
[1765117763095,8.80994492,129.21,129.18,0.1]
[1765117763604,8.40998019,129.2,129.18,0.1]
[1765117763807,18.20994492,129.19,129.18,0.1]
[1765117763993,18.87994492,129.19,129.18,0.1]
[1765117764388,9.47994492,129.19,129.18,0.1]
[1765117765610,17.22048211,129.19,129.18,0.1]
[1765117766619,9.47994492,129.19,129.18,0.1]
[1765117766904,18.87994492,129.19,129.18,0.1]
[1765117767108,8.80994492,129.2,129.18,0.1]
[1765117767315,9.4,129.19,129.18,0.1]
[1765117767619,10.07,129.19,129.18,0.1]
[1765117768118,26.62048211,129.19,129.18,0.1]
[1765117769098,42.92934611,129.19,129.18,0.1]
[1765117769417,8.80994492,129.14,129.1,0.1]
[1765117769619,9.4,129.13,129.1,0.1]
[1765117769800,8.80994492,129.12,129.1,0.1]
[1765117770120,18.20994492,129.11,129.1,0.1]
[1765117770304,18.87994492,129.11,129.1,0.1]
[1765117770706,9.4,129.11,129.1,0.1]
[1765117770938,8.80994492,129.13,129.1,0.1]
[1765117771093,9.4,129.13,129.1,0.78]
[1765117771290,7.74174475,129.17,129.1,0.78]
[1765117771291,9.4,129.14,129.1,0.78]
[1765117771496,9.4,129.16,129.1,0.78]
[1765117771993,8.80994492,129.15,129.11,7.74533343]
[1765117772221,9.4,129.16,129.11,7.74533343]
[1765117772398,8.80994492,129.15,129.11,8.42533343]
[1765117772593,8.80994492,129.15,129.11,7.74533343]
[1765117772789,8.80994492,129.13,129.1,0.1]
[1765117773223,8.80994492,129.11,129.1,0.1]
[1765117773402,18.20994492,129.11,129.1,0.1]
[1765117773603,18.87994492,129.11,129.1,0.1]
[1765117773821,9.4,129.12,129.1,0.1]
[1765117774531,0.67,129.11,129.1,0.1]
[1765117774755,8.80994492,129.13,129.1,0.1]
[1765117774959,18.20994492,129.13,129.1,0.1]
[1765117775578,8.80994492,129.17,129.11,0.68]
[1765117775734,9.4,129.15,129.11,0.68]
[1765117776232,9.47994492,129.17,129.11,0.68]
[1765117776233,9.47994492,129.17,129.12,7.74473358]
[1765117776433,9.4,129.16,129.12,7.74473358]
[1765117776667,10.07,129.16,129.12,7.74473358]
[1765117778156,10.07,129.16,129.11,27.10736185]
[1765117778476,9.4,129.16,129.12,0.68]
[1765117778974,9.47994492,129.15,129.11,27.10736185]
[1765117779175,8.80994492,129.15,129.11,8.42533343]
[1765117779983,9.4,129.16,129.12,0.68]
[1765117780287,9.4,129.17,129.13,7.74413381]
[1765117780488,9.4,129.17,129.13,27.10446835]
[1765117780651,0.5,129.15,129.13,7.74413381]
[1765117781767,0.5,129.15,129.11,27.78833446]
[1765117782253,8.80994492,129.19,129.12,0.68]
[1765117782576,0.67,129.19,129.12,0.68]
[1765117782756,8.80994492,129.2,129.12,0.68]
[1765117783061,18.20994492,129.2,129.12,0.68]
[1765117783481,0.67,129.19,129.12,0.68]
[1765117783679,0.67,129.19,129.13,7.74413381]
[1765117783984,8.41062591,129.19,129.1,0.78]
[1765117784270,8.80994492,129.18,129.1,0.78]
[1765117784472,9.47994492,129.18,129.1,0.78]
[1765117784781,0.67,129.17,129.1,0.78]
[1765117784975,9.38,129.16,129.12,7.74443525]
[1765117785478,9.38,129.16,129.12,8.42443525]
[1765117785679,9.47994492,129.18,129.12,27.7862692]
[1765117786079,9.38,129.17,129.12,27.7862692]
[1765117786273,8.80994492,129.16,129.1,0.1]
[1765117786481,9.47994492,129.16,129.1,7.84579127]
[1765117786864,9.47994492,129.16,129.11,7.74523153]
[1765117787066,27.09419839,129.18,129.12,7.74471124]
[1765117787067,8.80994492,129.18,129.12,7.74471124]
[1765117787297,8.80994492,129.18,129.12,27.78654519]
[1765117787599,8.80994492,129.18,129.13,0.68]
[1765117787904,8.80994492,129.18,129.14,7.74353414]
[1765117788115,19.34435949,129.24,129.14,27.10236951]
[1765117788414,9.38,129.25,129.15,0.68]
[1765117788562,10.05,129.25,129.15,0.68]
[1765117788761,9.47994492,129.24,129.14,27.10236951]
[1765117789202,8.80994492,129.21,129.14,7.74353414]
[1765117789495,9.38,129.2,129.14,7.74353414]
[1765117789676,17.79043989,129.2,129.14,7.74353414]
[1765117790467,17.79043989,129.2,129.14,8.42353414]
[1765117790686,8.80994492,129.19,129.14,8.42353414]
[1765117791093,8.80994492,129.19,129.15,0.7]
[1765117791893,8.80994492,129.19,129.15,8.44247078]
[1765117792905,9.38,129.2,129.15,27.09980721]
[1765117793059,18.18994492,129.21,129.16,0.7]
[1765117793266,25.92931584,129.21,129.16,0.7]
[1765117793478,26.59931584,129.21,129.16,0.7]
[1765117793785,8.80994492,129.19,129.15,7.74247078]
[1765117793999,9.38,129.23,129.17,7.74173569]
[1765117794310,0.67,129.22,129.17,7.74173569]
[1765117794611,8.80994492,129.21,129.17,7.74173569]
[1765117794772,8.80994492,129.21,129.16,7.74230272]
[1765117794980,8.80994492,129.21,129.16,8.44230272]
[1765117795177,0.72,129.2,129.14,7.74306272]
[1765117795397,8.80994492,129.19,129.14,7.74306272]
[1765117795591,9.38,129.18,129.15,7.74284104]
[1765117795897,9.38,129.18,129.13,8.4141086]
[1765117796102,9.52994492,129.17,129.1,0.77]
[1765117796691,0.72,129.16,129.11,7.74532225]
[1765117796902,0.72,129.16,129.1,0.77]
[1765117796903,8.6058091,129.15,129.1,0.1]
[1765117797079,0.72,129.14,129.1,0.1]
[1765117797286,9.38,129.13,129.1,0.1]
[1765117797790,0.72,129.12,129.1,0.1]
[1765117797992,8.46491478,129.12,129.1,0.1]
[1765117798185,24.77377878,129.12,129.1,0.1]
[1765117798428,24.77377878,129.12,128.85,0.67]
[1765117798429,1.0,129.0,128.85,0.67]
[1765117798583,16.308864,128.96,128.86,0.67]
[1765117798793,16.308864,128.96,128.86,27.83124616]
[1765117799101,18.18994492,128.95,128.86,27.83124616]
[1765117799287,18.90994492,128.95,128.87,0.67]
[1765117799597,18.90994492,128.95,128.82,7.76266627]
[1765117799598,8.80994492,128.89,128.82,7.76266627]
[1765117799776,8.80994492,128.87,128.81,0.67]
[1765117799994,9.38,128.86,128.83,7.76216719]
[1765117800174,9.38,128.85,128.78,19.41181998]
[1765117800404,8.80994492,128.84,128.78,19.41181998]
[1765117800574,8.80994492,128.84,128.79,0.67]
[1765117800774,8.80994492,128.84,128.8,7.76395658]
[1765117800975,8.80994492,128.84,128.79,0.67]
[1765117801298,8.80994492,128.84,128.72,38.84197262]
[1765117801299,8.80994492,128.85,128.76,20.08466257]
[1765117801489,8.80994492,128.82,128.73,0.67]
[1765117801682,9.38,128.83,128.77,7.76518268]
[1765117801994,9.38,128.83,128.74,27.18531747]
[1765117801995,18.18994492,128.82,128.74,27.18531747]
[1765117802182,8.80994492,128.82,128.74,27.18531747]
[1765117802388,8.80994492,128.8,128.75,0.67]
[1765117802898,9.38,128.8,128.75,0.67]
[1765117803093,9.38,128.8,128.71,38.84500747]
[1765117803094,8.80994492,128.78,128.73,7.76780512]
[1765117803297,9.52994492,128.79,128.64,19.43276735]
[1765117803298,8.80994492,128.75,128.64,19.43276735]
[1765117803477,8.80994492,128.73,128.64,19.43276735]
[1765117803805,8.80994492,128.74,128.66,26.70319321]
[1765117804102,8.80994492,128.74,128.66,27.37319321]
[1765117804103,9.38,128.73,128.66,27.37319321]
[1765117804401,8.80994492,128.78,128.69,16.308864]
[1765117804589,9.38,128.81,128.69,16.308864]
[1765117804894,0.72,128.89,128.74,16.308864]
[1765117805117,9.38,128.86,128.74,16.308864]
[1765117805301,0.72,128.89,128.75,0.67]
[1765117805475,0.72,128.88,128.75,0.67]
[1765117805672,10.1,128.88,128.75,0.67]
[1765117805902,9.38,128.87,128.75,0.67]
[1765117806086,10.1,128.87,128.76,27.18235476]
[1765117806277,8.80994492,128.86,128.77,0.67]
[1765117806481,0.72,128.9,128.79,16.308864]
[1765117806700,0.72,128.9,128.8,0.67]
[1765117807302,9.38,128.9,128.8,0.67]
[1765117807503,26.35615662,128.93,128.8,0.67]
[1765117807675,0.72,128.97,128.8,16.978864]
[1765117807874,0.72,128.96,128.8,16.978864]
[1765117808203,0.72,128.96,128.85,16.308864]
[1765117808403,7.75345885,128.98,128.85,16.308864]
[1765117808579,9.38,128.96,128.86,0.67]
[1765117808777,0.72,128.97,128.86,0.67]
[1765117809017,0.72,129.0,128.86,0.67]
[1765117809310,9.38,128.99,128.86,0.67]
[1765117809495,35.76300713,129.03,128.87,16.308864]
[1765117809801,9.38,128.99,128.87,16.308864]
[1765117809985,7.75494377,128.95,128.88,0.67]
[1765117810181,8.80994492,128.94,128.86,7.76005629]
[1765117810417,8.80994492,128.92,128.86,0.67]
[1765117810584,0.5,128.98,128.88,24.06768725]